bitfinex-derivatives/quotes_SOLF0:USTF0_20240907
["timestamp","ask_amount","ask_price","bid_price","bid_amount"]
[1725718021020,3.9336,127.12,127.1,3.9341]
[1725718021311,3.9333,127.13,127.1,3.9341]
[1725718021520,9.67,127.19,127.12,9.67]
[1725718021815,6.63201403,127.21,127.12,13.51403525]
[1725718022008,9.67,127.2,127.12,13.51403525]
[1725718022710,3.9316,127.18,127.14,3.9326]
[1725718023119,9.67,127.17,127.12,3.84403525]
[1725718023317,3.9326,127.15,127.12,3.9333]
[1725718023518,3.9326,127.15,127.12,7.87091839]
[1725718023819,3.9326,127.15,127.12,3.9333]
[1725718024117,3.9323,127.16,127.12,3.9333]
[1725718024323,3.9323,127.16,127.13,3.9331]
[1725718026324,25.5162,127.2,127.13,3.933]
[1725718026516,25.5162,127.2,127.12,4.02887987]
[1725718026715,5.2872,127.2,127.12,24.16]
[1725718026922,5.2872,127.2,127.12,28.12358071]
[1725718027221,5.2872,127.2,127.14,24.16]
[1725718027426,3.9313,127.19,127.16,3.932]
[1725718033021,91.39672985,127.43,127.12,5.29568071]
[1725718033022,23.62,127.25,127.15,24.16]
[1725718033325,24.16,127.24,127.15,24.16]
[1725718033522,3.9307,127.21,127.18,3.9313]
[1725718034530,24.16,127.24,127.19,3.95792371]
[1725718034829,24.16,127.24,127.16,2.6367]
[1725718035328,3.9306,127.22,127.18,3.9315]
[1725718035523,3.9306,127.22,127.19,3.96146283]
[1725718035724,3.9306,127.22,127.16,2.6367]
[1725718037826,3.9306,127.22,127.19,3.9312]
[1725718038044,3.9306,127.22,127.19,7.93025645]
[1725718038225,3.9306,127.22,127.19,3.9312]
[1725718038819,3.9306,127.22,127.19,7.93458103]
[1725718041236,24.16,127.23,127.16,2.6367]
[1725718041532,24.16,127.23,127.14,24.16]
[1725718041727,3.9314,127.19,127.16,3.932]
[1725718042136,24.16,127.19,127.12,3.96358071]
[1725718042328,47.78,127.19,127.11,1.3766]
[1725718042633,2.6839,127.18,127.11,1.3766]
[1725718042934,3.9325,127.16,127.11,5.3252327]
[1725718044028,3.9325,127.16,127.12,3.9332]
[1725718044434,3.9325,127.16,127.11,5.3252327]
[1725718045323,3.9325,127.16,127.13,3.9331]
[1725718045627,2.6839,127.18,127.11,5.3252327]
[1725718045628,3.932,127.17,127.11,5.3252327]
[1725718045829,3.932,127.17,127.12,24.16]
[1725718046027,1.3127,127.2,127.12,24.16]
[1725718046227,3.9314,127.19,127.13,1.4104]
[1725718046630,3.9314,127.19,127.15,3.9323]
[1725718047158,3.9314,127.19,127.13,1.4104]
[1725718047159,3.9314,127.19,127.14,24.16]
[1725718047335,3.9311,127.2,127.14,24.16]
[1725718049138,3.9311,127.2,127.17,3.9318]
[1725718051147,3.9307,127.21,127.18,7.87762662]
[1725718051637,3.9305,127.22,127.19,3.9312]
[1725718057235,3.9305,127.22,127.2,3.9309]
[1725718058671,3.9302,127.23,127.18,3.94612662]
[1725718058837,3.9302,127.23,127.18,1.3204]
[1725718059146,3.9302,127.23,127.2,3.9308]
[1725718061642,3.9299,127.24,127.21,3.9305]
[1725718063847,3.9301,127.23,127.21,3.9305]
[1725718065340,3.9301,127.23,127.2,3.9308]
[1725718070343,3.9299,127.24,127.21,3.9307]
[1725718073247,1.3676,127.25,127.2,9.67]
[1725718073948,3.9299,127.24,127.21,3.9305]
[1725718076939,3.9299,127.24,127.21,13.6005]
[1725718078750,1.3227,127.26,127.21,9.67]
[1725718079051,4.1022,127.3,127.24,9.67]
[1725718079247,4.1022,127.3,127.25,3.9291]
[1725718079248,3.9285,127.28,127.25,3.9291]
[1725718079447,4.1022,127.3,127.24,9.67]
[1725718079752,3.9284,127.29,127.26,3.9291]
[1725718079959,3.9284,127.29,127.26,7.78955597]
[1725718083648,27.63069098,127.35,127.27,9.67]
[1725718083842,1002.55092062,127.41,127.3,9.67]
[1725718083843,3.10911135,127.34,127.3,9.67]
[1725718084048,2.701,127.34,127.3,9.67]
[1725718084950,1.4103,127.34,127.3,9.67]
[1725718085954,3.927,127.33,127.3,9.67]
[1725718087454,3.927,127.33,127.3,13.5978]
[1725718087849,3.9267,127.34,127.3,13.5978]
[1725718088266,10.965,127.37,127.3,13.5978]
[1725718088449,3.9268,127.34,127.3,13.5978]
[1725718089152,3.9268,127.34,127.31,9.67]
[1725718089546,14.98724379,127.37,127.3,9.67]
[1725718089547,3.9272,127.33,127.3,9.67]
[1725718089952,3.9278,127.31,127.27,6.7193]
[1725718090148,3.9278,127.31,127.27,2.7907]
[1725718090456,3.9278,127.31,127.27,13.5988]
[1725718091154,3.9278,127.31,127.28,9.67]
[1725718091951,3.9278,127.31,127.27,28.0588]
[1725718092853,3.9275,127.32,127.28,3.9285]
[1725718094666,3.9276,127.31,127.28,3.9285]
[1725718097956,3.9276,127.31,127.27,28.0587]
[1725718098960,3.9282,127.3,127.26,3.86045597]
[1725718099158,3.9282,127.3,127.25,24.13]
[1725718099350,3.9282,127.3,127.27,24.13]
[1725718099557,3.9282,127.3,127.28,3.97116593]
[1725718099960,3.9282,127.3,127.27,28.0586]
[1725718100357,3.9276,127.31,127.28,3.9283]
[1725718100658,3.9276,127.31,127.28,7.83377654]
[1725718106467,3.9273,127.32,127.29,3.9281]
[1725718106668,3.9273,127.32,127.28,3.90547654]
[1725718106669,2.7607,127.33,127.28,3.90547654]
[1725718106865,2.7607,127.33,127.27,24.13]
[1725718107062,3.9279,127.3,127.27,28.0586]
[1725718107568,3.9279,127.3,127.28,4.02334564]
[1725718109158,3.9282,127.29,127.28,4.02334564]
[1725718109370,2.7607,127.33,127.28,4.02334564]
[1725718110266,3.928,127.3,127.28,4.02334564]
[1725718110765,3.9277,127.31,127.28,3.9284]
[1725718110969,3.9277,127.31,127.29,3.83907326]
[1725718111968,3.9277,127.31,127.29,13.48907326]
[1725718113763,3.9277,127.31,127.29,3.83907326]
[1725718114091,2.7607,127.33,127.28,3.9284]
[1725718114575,2.7607,127.33,127.28,7.88023468]
[1725718115068,3.9277,127.31,127.28,7.88023468]
[1725718117666,3.9279,127.3,127.28,7.88023468]
[1725718118075,9.65,127.32,127.21,1.3647]
[1725718118265,10.9712,127.32,127.25,9.65]
[1725718118461,10.9712,127.32,127.26,3.84065372]
[1725718118862,3.9282,127.29,127.26,7.76965372]
[1725718119376,34.5912,127.32,127.26,3.84065372]
[1725718119974,3.9286,127.28,127.26,3.84065372]
[1725718127192,9.65,127.31,127.26,3.84065372]
[1725718127384,3.95166994,127.3,127.26,3.84065372]
[1725718127691,3.929,127.27,127.24,9.65]
[1725718128987,3.9287,127.28,127.25,3.9292]
[1725718129215,3.9287,127.28,127.26,13.56277013]
[1725718129785,3.9283,127.29,127.26,17.49187013]
[1725718129988,1.3748,127.33,127.28,9.65]
[1725718130193,12.3934,127.36,127.3,9.65]
[1725718130488,0.407927,127.35,127.3,9.65]
[1725718130793,12.3934,127.36,127.3,13.5778]
[1725718131086,3.927,127.33,127.3,13.5778]
[1725718136694,3.9268,127.34,127.32,9.65]
[1725718137096,2.7434,127.36,127.31,9.65]
[1725718137287,131.84543351,127.38,127.33,9.65]
[1725718137508,0.40789444,127.37,127.33,9.65]
[1725718137791,3.9265,127.35,127.33,9.65]
[1725718138284,3.9262,127.36,127.33,9.65]
[1725718138491,3.9262,127.36,127.34,3.95317778]
[1725718138694,131.84543351,127.38,127.34,9.65]
[1725718138890,131.84543351,127.38,127.34,13.5765]
[1725718138891,3.926,127.37,127.34,13.5765]
[1725718139297,4.0459,127.4,127.35,9.65]
[1725718139494,4.0459,127.4,127.35,13.5761]
[1725718140094,4.0459,127.4,127.35,17.48898979]
[1725718140498,4.0459,127.4,127.35,13.56288979]
[1725718141094,4.0459,127.4,127.35,17.48918979]
[1725718141495,4.0459,127.4,127.35,13.56288979]
[1725718141699,13.6959,127.4,127.35,3.91288979]
[1725718141901,13.6959,127.4,127.34,9.65]
[1725718142501,3.9257,127.37,127.34,13.5764]
[1725718142704,3.9257,127.37,127.35,3.9802089]
[1725718142904,3.9257,127.37,127.34,13.5764]
[1725718143121,148.07694524,127.43,127.35,13.67222571]
[1725718143416,148.07694524,127.43,127.39,9.65]
[1725718143417,0.40760356,127.42,127.39,9.65]
[1725718143604,8.0434,127.44,127.4,13.5747]
[1725718143800,4.1198,127.44,127.39,9.65]
[1725718144001,0.40754603,127.43,127.39,9.65]
[1725718144202,3.9244,127.42,127.38,3.9252]
[1725718144439,3.9244,127.42,127.38,9.65]
[1725718144604,4.1198,127.44,127.38,13.64787952]
[1725718145006,13.7698,127.44,127.38,13.64787952]
[1725718145198,2.7911,127.44,127.41,3.9245]
[1725718145397,2.7911,127.44,127.4,9.65]
[1725718145599,2.7911,127.44,127.36,2.7234]
[1725718145800,3.9242,127.43,127.38,9.65]
[1725718146000,3.9242,127.43,127.39,3.85657089]
[1725718146328,2.7911,127.44,127.4,9.65]
[1725718146502,138.52245052,127.47,127.4,9.65]
[1725718146739,0.40741972,127.46,127.41,9.65]
[1725718147413,3.9238,127.44,127.41,9.65]
[1725718147804,3.9238,127.44,127.41,13.60116972]
[1725718149206,3.9972,127.48,127.42,9.65]
[1725718149401,0.40731135,127.47,127.42,9.65]
[1725718149598,3.9231,127.46,127.42,13.5742]
[1725718151608,13.6472,127.48,127.42,9.65]
[1725718151915,0.40733797,127.47,127.42,9.65]
[1725718152303,3.9972,127.48,127.42,9.65]
[1725718152905,0.40733724,127.47,127.41,13.60116972]
[1725718153100,0.40733724,127.47,127.41,9.65]
[1725718153508,3.9234,127.45,127.41,13.5743]
[1725718153913,3.9234,127.45,127.41,9.65]
[1725718154104,3.9238,127.44,127.36,2.7234]
[1725718154417,9.65,127.45,127.39,9.65]
[1725718154880,3.9244,127.42,127.38,9.65]
[1725718154907,9.65,127.44,127.38,9.65]
[1725718155211,3.9244,127.42,127.38,13.5754]
[1725718155407,3.9244,127.42,127.39,3.91121752]
[1725718156704,3.9245,127.41,127.39,3.91121752]
[1725718156906,9.65,127.44,127.39,3.91121752]
[1725718157211,9.65,127.44,127.38,9.65]
[1725718157713,9.65,127.44,127.39,3.83703587]
[1725718157913,3.9244,127.42,127.39,3.83703587]
[1725718158110,9.65,127.44,127.38,13.5753]
[1725718158511,3.9248,127.41,127.38,9.65]
[1725718158710,3.9248,127.41,127.38,13.60375588]
[1725718159118,3.925,127.4,127.38,3.95375588]
[1725718159319,3.925,127.4,127.37,3.9257]
[1725718159616,3.925,127.4,127.37,13.5757]
[1725718159911,3.925,127.4,127.38,3.89643231]
[1725718160119,9.65,127.44,127.37,9.65]
[1725718160619,3.925,127.4,127.37,13.59119181]
[1725718161510,9.65,127.41,127.36,1.3581]
[1725718161737,9.65,127.39,127.32,9.65]
[1725718162113,9.65,127.39,127.3,4.1327]
[1725718162320,9.65,127.39,127.32,9.65]
[1725718162523,9.65,127.39,127.32,13.61710521]
[1725718162712,3.9265,127.35,127.32,3.96710521]
[1725718162906,3.9265,127.35,127.31,13.5773]
[1725718163510,3.9265,127.35,127.32,3.9396213]
[1725718163915,3.9267,127.34,127.32,3.9396213]
[1725718164311,9.65,127.37,127.32,3.9396213]
[1725718165432,9.65,127.37,127.3,2.7551]
[1725718165622,9.65,127.37,127.3,11.0493]
[1725718166009,9.65,127.37,127.31,3.97180111]
[1725718166634,11.0424,127.37,127.31,3.97180111]
[1725718167219,3.9269,127.34,127.31,3.97180111]
[1725718167516,11.0424,127.37,127.31,3.97180111]
[1725718167909,3.9269,127.34,127.31,3.97180111]
[1725718168224,11.0424,127.37,127.31,3.97180111]
[1725718169124,3.927,127.33,127.31,3.97180111]
[1725718169721,3.9268,127.34,127.31,3.97180111]
[1725718170424,3.9268,127.34,127.31,7.89930111]
[1725718171126,11.0424,127.37,127.31,3.97180111]
[1725718171127,3.927,127.33,127.31,3.97180111]
[1725718172024,9.65,127.33,127.28,3.93794285]
[1725718172223,9.65,127.33,127.27,9.65]
[1725718172424,1.3924,127.37,127.25,1.3776]
[1725718172425,9.65,127.32,127.25,1.3776]
[1725718172723,9.65,127.32,127.25,11.0276]
[1725718172925,3.9283,127.29,127.26,3.9291]
[1725718173620,3.9283,127.29,127.27,3.98940125]
[1725718175116,3.9283,127.29,127.26,3.9291]
[1725718178025,9.65,127.34,127.27,13.51836322]
[1725718178341,9.65,127.36,127.29,9.65]
[1725718178626,9.65,127.36,127.29,13.54429901]
[1725718178822,9.65,127.36,127.29,17.47229901]
[1725718179417,3.9274,127.32,127.29,17.47229901]
[1725718183927,3.9277,127.31,127.29,13.54429901]
[1725718184130,9.65,127.36,127.29,13.54429901]
[1725718184323,9.65,127.31,127.26,1.3001]
[1725718184531,9.65,127.31,127.25,1.3776]
[1725718184923,3.9284,127.29,127.25,5.3068]
[1725718185335,9.65,127.31,127.24,9.65]
[1725718185540,9.65,127.3,127.24,13.5796]
[1725718186433,3.9289,127.27,127.24,13.5796]
[1725718187136,9.65,127.3,127.23,3.9299]
[1725718187333,9.65,127.3,127.23,13.5799]
[1725718187731,3.929,127.27,127.24,13.5797]
[1725718190037,3.929,127.27,127.24,3.9297]
[1725718191837,3.929,127.27,127.23,13.5799]
[1725718192944,3.9286,127.28,127.24,3.9296]
[1725718194534,3.9286,127.28,127.25,13.5794]
[1725718195144,3.9286,127.28,127.25,3.9294]
[1725718198748,3.9289,127.27,127.24,3.9296]
[1725718199439,9.65,127.28,127.22,5.2614]
[1725718199633,9.65,127.28,127.22,3.9302]
[1725718200040,3.9295,127.25,127.22,3.9302]
[1725718200440,28.88720498,127.32,127.21,14.8734]
[1725718200441,9.65,127.27,127.21,14.8734]
[1725718200657,9.65,127.25,127.2,3.8355751]
[1725718200944,9.65,127.25,127.18,11.0769]
[1725718201335,9.65,127.25,127.18,14.96465349]
[1725718201739,3.9302,127.23,127.2,3.9308]
[1725718201945,9.65,127.26,127.21,9.65]
[1725718202145,28.88720498,127.32,127.22,9.65]
[1725718202442,3.9296,127.25,127.22,13.5802]
[1725718202940,9.65,127.29,127.22,13.5802]
[1725718203147,3.9293,127.26,127.23,3.93]
[1725718203346,9.65,127.29,127.22,9.65]
[1725718203552,9.65,127.3,127.18,5.31465349]
[1725718203745,9.65,127.29,127.22,9.65]
[1725718204248,3.9288,127.27,127.23,3.9298]
[1725718204451,9.65,127.29,127.23,3.9298]
[1725718205047,9.65,127.27,127.21,13.5805]
[1725718205247,9.65,127.27,127.2,9.65]
[1725718205661,3.9296,127.25,127.22,3.9302]
[1725718208356,3.9294,127.26,127.21,9.65]
[1725718209359,3.9294,127.26,127.23,3.93]
[1725718209855,3.929,127.27,127.24,3.9297]
[1725718210157,10.9626,127.31,127.25,4.00448042]
[1725718210558,9.65,127.29,127.23,9.65]
[1725718211158,9.65,127.29,127.23,13.5798]
[1725718211359,24.9326,127.31,127.23,9.65]
[1725718211555,9.65,127.29,127.23,9.65]
[1725718211859,3.9291,127.27,127.24,3.9297]
[1725718212358,3.9281,127.3,127.25,9.65]
[1725718212560,3.9281,127.3,127.26,3.90504637]
[1725718212756,1.3126,127.31,127.26,3.90504637]
[1725718213372,3.928,127.3,127.26,3.90504637]
[1725718213574,1.4022,127.32,127.25,9.65]
[1725718214176,3.9279,127.31,127.27,3.9286]
[1725718214575,3.9279,127.31,127.25,13.58949017]
[1725718214576,9.65,127.31,127.25,13.58949017]
[1725718214869,9.65,127.29,127.22,9.65]
[1725718215875,9.65,127.27,127.21,9.65]
[1725718216181,3.9292,127.26,127.22,3.9301]
[1725718216384,3.9292,127.26,127.21,9.65]
[1725718216774,3.9292,127.26,127.23,3.93]
[1725718217279,3.9292,127.26,127.21,9.65]
[1725718217478,3.9292,127.26,127.22,3.9301]
[1725718219583,3.9292,127.26,127.23,3.9299]
[1725718220982,3.9289,127.27,127.23,3.9299]
[1725718221482,3.9289,127.27,127.24,3.9297]
[1725718221982,5.3023,127.28,127.22,9.65]
[1725718222286,9.65,127.3,127.24,9.65]
[1725718222473,1.3146,127.31,127.19,108.9556951]
[1725718222474,10.9646,127.31,127.25,9.65]
[1725718222780,10.9646,127.31,127.26,3.94749422]
[1725718222983,3.928,127.3,127.26,7.87639422]
[1725718223177,3.928,127.3,127.26,3.94749422]
[1725718223378,3.928,127.3,127.27,3.9288]
[1725718224788,3.9282,127.29,127.26,7.87649422]
[1725718225473,3.928,127.3,127.27,3.9287]
[1725718226278,3.9277,127.31,127.28,3.9284]
[1725718229587,3.928,127.3,127.27,7.82400421]
[1725718230384,3.928,127.3,127.27,3.9287]
[1725718231677,13.63758544,127.31,127.26,3.98129959]
[1725718231883,9.65,127.31,127.26,3.98129959]
[1725718232282,3.9283,127.29,127.26,7.91029959]
[1725718233479,3.928,127.3,127.27,9.65]
[1725718233681,1.3737,127.33,127.28,9.65]
[1725718234483,3.9276,127.31,127.28,13.5783]
[1725718234688,3.9276,127.31,127.28,3.9283]
[1725718244287,3.9279,127.3,127.27,13.5787]
[1725718244485,9.65,127.31,127.26,3.98129959]
[1725718244690,9.65,127.31,127.25,13.70602022]
[1725718244888,3.9281,127.3,127.27,3.9288]
[1725718247592,3.9281,127.3,127.27,13.5788]
[1725718250787,3.9278,127.31,127.28,3.9284]
[1725718251596,3.9278,127.31,127.28,13.5784]
[1725718252496,3.9274,127.32,127.28,9.65]
[1725718252797,143.68255452,127.34,127.3,9.65]
[1725718254307,3.9271,127.33,127.31,3.9276]
[1725718261501,143.68255452,127.34,127.31,9.65]
[1725718261715,1.4196,127.36,127.31,9.65]
[1725718262598,9.65,127.39,127.32,9.65]
[1725718262797,8.06337301,127.4,127.34,9.65]
[1725718263004,3.9258,127.37,127.34,13.5765]
[1725718263607,3.9258,127.37,127.34,17.57580021]
[1725718263804,1.3754,127.4,127.36,9.65]
[1725718264004,13.65833418,127.43,127.36,9.65]
[1725718264312,3.9251,127.39,127.36,3.9258]
[1725718266910,29.00373418,127.43,127.37,9.65]
[1725718266911,1.3754,127.43,127.37,9.65]
[1725718267109,11.0254,127.43,127.37,9.65]
[1725718268506,13.54752359,127.42,127.35,2.7336]
[1725718268708,3.925,127.4,127.36,3.9258]
[1725718269407,3.9252,127.39,127.36,3.9258]
[1725718270413,3.9249,127.4,127.36,3.9258]
[1725718270613,3.9249,127.4,127.37,3.9257]
[1725718270809,3.9249,127.4,127.36,9.65]
[1725718271204,3.9249,127.4,127.36,13.5758]
[1725718272509,3.9249,127.4,127.37,3.9256]
[1725718272809,3.9249,127.4,127.37,13.5756]
[1725718273618,3.9249,127.4,127.36,13.5759]
[1725718274115,3.9249,127.4,127.36,9.65]
[1725718274307,3.9249,127.4,127.37,3.9257]
[1725718277014,3.9251,127.39,127.36,13.5759]
[1725718277216,3.9251,127.39,127.36,3.9259]
[1725718277611,3.9251,127.39,127.35,9.65]
[1725718278212,3.9251,127.39,127.36,3.926]
[1725718280316,3.9251,127.39,127.36,13.576]
[1725718280814,9.65,127.41,127.34,3.99930021]
[1725718281019,9.65,127.39,127.29,2.7613]
[1725718281212,9.65,127.39,127.32,9.65]
[1725718281412,3.9262,127.36,127.33,7.82666859]
[1725718282219,23.62,127.41,127.34,13.5766]
[1725718282220,3.9259,127.37,127.34,13.5766]
[1725718282921,3.9259,127.37,127.35,9.65]
[1725718284224,3.926,127.36,127.35,9.65]
[1725718285321,3.926,127.36,127.33,17.47676859]
[1725718285520,3.926,127.36,127.33,13.5768]
[1725718286122,3.926,127.36,127.33,17.54483581]
[1725718287931,3.9263,127.35,127.33,17.54483581]
[1725718288227,3.9263,127.35,127.32,13.5771]
[1725718289424,3.9262,127.36,127.34,9.65]
[1725718293133,9.65,127.35,127.29,1.3953]
[1725718293426,9.65,127.34,127.28,9.65]
[1725718293630,33.27,127.34,127.28,9.65]
[1725718293835,9.65,127.31,127.24,9.65]
[1725718294132,9.65,127.31,127.25,4.02497447]
[1725718294435,3.9288,127.27,127.24,9.65]
[1725718294826,3.9286,127.28,127.24,13.5797]
[1725718295024,3.9286,127.28,127.25,3.97948758]
[1725718296131,3.9283,127.29,127.25,17.55888758]
[1725718296337,3.9283,127.29,127.25,13.5794]
[1725718296536,3.9277,127.31,127.26,7.78725646]
[1725718296741,2.7757,127.33,127.29,9.65]
[1725718297044,1.3735,127.33,127.29,9.65]
[1725718297437,3.9275,127.32,127.29,13.66760452]
[1725718300048,3.9275,127.32,127.29,7.94570452]
[1725718300248,3.9271,127.33,127.29,3.9281]
[1725718301035,3.9267,127.34,127.3,7.93549956]
[1725718301847,3.927,127.33,127.3,7.93549956]
[1725718302147,3.927,127.33,127.3,4.00769956]
[1725718305550,3.927,127.33,127.3,7.93559956]
[1725718323953,1.3038,127.38,127.32,9.65]
[1725718324154,1.3038,127.38,127.33,9.65]
[1725718324365,3.926,127.37,127.34,3.9266]
[1725718324954,3.9261,127.36,127.34,3.9266]
[1725718330457,3.9259,127.37,127.34,3.9266]
[1725718331662,3.9259,127.37,127.35,3.97974132]
[1725718333459,3.9256,127.38,127.35,17.55594132]
[1725718333652,3.9256,127.38,127.35,13.5762]
[1725718334258,3.9256,127.38,127.35,17.53009931]
[1725718334465,3.9256,127.38,127.36,3.926]
[1725718335256,3.9256,127.38,127.35,13.60389931]
[1725718335257,9.65,127.38,127.29,1.3032]
[1725718335462,9.65,127.38,127.31,9.65]
[1725718335857,3.9265,127.35,127.32,3.9271]
[1725718338468,3.9269,127.34,127.31,3.9275]
[1725718340759,9.65,127.35,127.29,3.92994581]
[1725718340961,9.65,127.34,127.28,11.0637]
[1725718341261,9.65,127.33,127.26,101.99843238]
[1725718341566,9.65,127.33,127.26,105.94745445]
[1725718341869,9.65,127.33,127.27,9.65]
[1725718342569,3.9277,127.31,127.28,3.9285]
[1725718346267,3.9274,127.32,127.29,3.9282]
[1725718346474,9.65,127.36,127.29,9.65]
[1725718346877,3.927,127.33,127.3,3.9276]
[1725718349874,9.65,127.36,127.29,9.65]
[1725718350979,3.9269,127.34,127.3,3.9276]
[1725718351176,3.9269,127.34,127.29,9.65]
[1725718351572,3.9269,127.34,127.31,3.9274]
[1725718352377,3.9269,127.34,127.29,9.65]
[1725718352572,3.9269,127.34,127.29,13.70424124]
[1725718352877,3.9265,127.35,127.31,9.65]
[1725718353376,3.9265,127.35,127.32,3.927]
[1725718366286,3.9265,127.35,127.33,7.87867366]
[1725718367083,3.9262,127.36,127.33,7.87867366]
[1725718369085,3.9263,127.35,127.33,7.87867366]
[1725718374995,3.9261,127.36,127.33,7.87867366]
[1725718377094,3.9259,127.37,127.34,3.9266]
[1725718381706,3.926,127.36,127.34,3.9266]
[1725718390106,3.9266,127.35,127.33,3.95177366]
[1725718390301,9.65,127.36,127.32,3.9271]
[1725718390606,9.65,127.37,127.3,10.9487]
[1725718390910,3.9262,127.36,127.33,3.9269]
[1725718391802,3.9262,127.36,127.33,3.83795837]
[1725718392002,3.9262,127.36,127.32,9.65]
[1725718392601,3.9262,127.36,127.33,7.90526306]
[1725718392803,3.9262,127.36,127.33,3.97856306]
[1725718393715,3.9262,127.36,127.34,3.9266]
[1725718394011,9.65,127.38,127.33,3.97856306]
[1725718394508,9.65,127.38,127.31,4.05389688]
[1725718394810,9.65,127.38,127.3,10.9487]
[1725718395005,3.9261,127.36,127.33,3.9269]
[1725718395205,9.65,127.38,127.3,10.9487]
[1725718395397,9.65,127.36,127.3,10.9487]
[1725718396204,9.65,127.36,127.27,1.33]
[1725718396403,9.65,127.36,127.29,13.70404025]
[1725718396601,9.65,127.36,127.3,4.05404025]
[1725718396802,3.927,127.33,127.29,9.65]
[1725718397110,3.927,127.33,127.3,9.65]
[1725718398111,3.9267,127.34,127.32,3.9273]
[1725718399909,3.9267,127.34,127.31,3.9274]
[1725718401611,4.0414,127.36,127.27,1.3365]
[1725718401612,9.65,127.33,127.27,1.3365]
[1725718401806,9.65,127.33,127.26,115.59745445]
[1725718402007,9.65,127.33,127.27,4.05548979]
[1725718402208,3.9278,127.31,127.27,3.9286]
[1725718402506,3.9278,127.31,127.26,115.59745445]
[1725718402903,3.9278,127.31,127.27,4.05558665]
[1725718403108,3.9276,127.31,127.26,115.59745445]
[1725718403315,3.9276,127.31,127.27,7.98415325]
[1725718403516,3.9276,127.31,127.27,3.9285]
[1725718403816,3.9279,127.3,127.27,3.9285]
[1725718414311,154.98562793,127.36,127.27,9.65]
[1725718414513,9.65,127.35,127.29,9.65]
[1725718414721,9.65,127.35,127.29,13.5779]
[1725718415312,9.65,127.35,127.29,17.48211184]
[1725718415730,154.98562793,127.36,127.24,1.3119]
[1725718415731,9.65,127.32,127.24,1.3119]
[1725718415921,9.65,127.32,127.25,13.70497104]
[1725718416119,9.65,127.32,127.26,4.05497104]
[1725718416311,178.56562793,127.36,127.25,4.02561684]
[1725718416516,9.65,127.3,127.26,4.05563709]
[1725718416719,9.65,127.3,127.26,3.83584787]
[1725718417024,3.9282,127.29,127.26,3.9289]
[1725718417423,9.65,127.32,127.26,3.9289]
[1725718417624,3.9281,127.3,127.26,3.9289]
[1725718418722,3.9281,127.3,127.26,13.5789]
[1725718419219,3.9281,127.3,127.26,17.634439]
[1725718419921,3.9281,127.3,127.26,13.5789]
[1725718420118,3.9281,127.3,127.26,3.9289]
[1725718420320,9.65,127.3,127.25,7.90855506]
[1725718420514,9.65,127.3,127.25,3.9293]
[1725718420822,3.9284,127.29,127.25,3.9293]
[1725718421124,3.9284,127.29,127.26,3.8518664]
[1725718422523,3.9282,127.29,127.26,3.8518664]
[1725718424128,3.9282,127.29,127.26,7.7809664]
[1725718428830,3.9282,127.29,127.26,3.9291]
[1725718429439,3.9282,127.29,127.26,7.93665143]
[1725718432945,3.928,127.3,127.27,3.9287]
[1725718433143,177.23902793,127.36,127.24,1.3119]
[1725718433144,9.65,127.34,127.28,9.65]
[1725718433447,3.9275,127.32,127.29,3.9282]